bitfinex-derivatives/quotes_BNBF0:USTF0_20250303
["timestamp","ask_amount","ask_price","bid_price","bid_amount"]
[1740996155982,4.99767147,600.87,598.93,1.2343549]
[1740996156285,4.99763574,600.86,598.93,1.2343549]
[1740996156487,5.33049751,600.85,598.93,1.2343549]
[1740996156786,4.99763574,600.84,598.93,1.2343549]
[1740996156986,4.33128431,600.83,599.47,1.2343549]
[1740996157180,4.33128431,600.82,599.47,1.2343549]
[1740996157379,4.33128431,600.81,599.47,1.2343549]
[1740996157584,4.33128431,600.8,599.47,1.2343549]
[1740996157781,1.66587858,600.79,599.47,1.2343549]
[1740996157987,0.33286177,600.85,599.47,1.2343549]
[1740996158686,1.73955062,600.84,599.47,1.2343549]
[1740996159481,1.73955062,600.84,599.59,1.2343549]
[1740996161384,1.73955062,600.84,599.6,0.3335557]
[1740996162287,2.07241793,600.84,599.6,0.3335557]
[1740996163880,3.7379776,600.84,599.6,0.3335557]
[1740996164085,1.66555967,600.83,599.6,0.3335557]
[1740996164283,0.33286731,600.84,599.6,0.3335557]
[1740996164684,1.73965207,600.82,599.6,0.3335557]
[1740996165786,4.33026369,600.81,599.6,0.3335557]
[1740996166091,4.33026369,600.8,599.6,0.3335557]
[1740996166278,4.3298467,600.79,599.6,0.3335557]
[1740996166483,4.3298467,600.78,599.6,0.3335557]
[1740996166683,4.3298467,600.77,599.6,0.3335557]
[1740996166881,4.3298467,600.76,599.6,0.3335557]
[1740996167080,4.3298467,600.75,599.6,0.3335557]
[1740996167283,0.33286731,600.84,599.6,0.3335557]
[1740996167284,1.66532565,600.74,599.6,0.3335557]
[1740996167484,1.66532565,600.73,599.6,0.3335557]
[1740996167681,1.66532565,600.72,599.6,0.3335557]
[1740996167985,1.73958685,600.74,599.6,0.3335557]
[1740996173285,0.33286731,600.84,599.6,0.3335557]
[1740996173690,1.73958685,600.73,599.6,0.3335557]
[1740996173891,0.33286731,600.84,599.6,0.3335557]
[1740996174091,1.73959409,600.72,599.6,0.3335557]
[1740996174489,0.33286731,600.84,599.6,0.3335557]
[1740996175091,2.66352936,601.27,599.6,0.3335557]
[1740996175291,10.02547975,603.84,599.6,0.3335557]
[1740996175292,4.66073703,601.26,599.6,0.3335557]
[1740996175493,4.99397366,601.25,599.6,0.3335557]
[1740996175690,3.3294117,601.24,599.6,0.3335557]
[1740996175889,3.3294117,601.25,599.6,0.3335557]
[1740996176092,2.07155522,601.26,599.6,0.3335557]
[1740996176288,2.66352936,601.25,599.6,0.3335557]
[1740996176590,0.66588234,601.25,599.6,0.3335557]
[1740996176790,2.07155522,601.26,599.6,0.3335557]
[1740996177191,2.66352936,601.25,599.6,0.3335557]
[1740996177992,0.33264586,601.24,599.6,0.3335557]
[1740996178393,2.99617522,601.24,599.6,0.3335557]
[1740996178599,0.33264586,601.24,599.6,0.3335557]
[1740996178794,2.99617522,601.24,599.6,0.3335557]
[1740996179099,0.33264586,601.24,599.6,0.3335557]
[1740996180898,2.66352936,601.23,599.6,0.3335557]
[1740996181099,2.66352936,601.22,599.6,0.3335557]
[1740996181394,2.66352936,601.21,599.6,0.3335557]
[1740996181602,2.66352936,601.23,599.6,0.3335557]
[1740996181897,0.33264586,601.24,599.6,0.3335557]
[1740996182504,1.73850778,601.23,599.6,0.3335557]
[1740996185296,0.33264586,601.24,599.6,0.3335557]
[1740996185697,1.73816045,601.23,599.6,0.3335557]
[1740996186200,1.73816045,601.23,599.62,1.2343549]
[1740996187996,1.73816045,601.23,599.6,0.3335557]
[1740996188200,3.32662329,601.63,599.6,0.3335557]
[1740996188398,2.9937357,601.62,599.6,0.3335557]
[1740996188598,1.73818215,601.22,599.6,0.3335557]
[1740996188803,3.32662329,601.6,599.6,0.3335557]
[1740996188999,1.73822556,601.21,599.6,0.3335557]
[1740996189201,3.32662329,601.58,599.6,0.3335557]
[1740996189405,2.66129995,601.57,599.6,0.3335557]
[1740996189608,1.7384137,601.2,599.6,0.3335557]
[1740996189906,3.32662329,601.55,599.6,0.3335557]
[1740996190208,1.73838475,601.19,599.6,0.3335557]
[1740996190401,3.32662329,601.53,599.6,0.3335557]
[1740996190602,2.66129995,601.52,599.6,0.3335557]
[1740996190803,2.66129995,601.51,599.6,0.3335557]
[1740996191005,2.66129995,601.52,599.6,0.3335557]
[1740996191202,0.66532334,601.53,599.6,0.3335557]
[1740996191203,2.66129995,601.51,599.6,0.3335557]
[1740996191408,2.66129995,601.52,599.6,0.3335557]
[1740996191605,1.73816768,601.51,599.6,0.3335557]
[1740996194207,2.66138956,601.61,599.6,0.3335557]
[1740996194404,2.66138956,601.6,599.6,0.3335557]
[1740996194607,2.66138956,601.61,599.6,0.3335557]
[1740996194807,4.39918835,601.6,599.6,0.3335557]
[1740996195009,3.32673695,601.59,599.6,0.3335557]
[1740996195305,2.66138956,601.58,599.6,0.3335557]
[1740996195510,2.66138956,601.59,599.6,0.3335557]
[1740996195710,1.73779879,601.6,599.6,0.3335557]
[1740996196112,0.33245233,601.59,599.6,0.3335557]
[1740996197514,2.66138956,601.58,599.6,0.3335557]
[1740996197711,2.66138956,601.57,599.6,0.3335557]
[1740996197913,2.66138956,601.56,599.6,0.3335557]
[1740996198111,2.66138956,601.55,599.6,0.3335557]
[1740996198311,2.66138956,601.54,599.6,0.3335557]
[1740996198614,0.33245233,601.59,599.6,0.3335557]
[1740996198615,2.66138956,601.53,599.6,0.3335557]
[1740996198817,2.99388058,601.52,599.6,0.3335557]
[1740996199013,0.33249102,601.52,599.6,0.3335557]
[1740996200815,1.73716986,601.51,599.6,0.3335557]
[1740996203317,0.33249102,601.52,599.6,0.3335557]
[1740996203618,1.73786388,601.5,599.6,0.3335557]
[1740996203815,1.73786388,601.5,599.8,1.2343549]
[1740996204115,1.73786388,601.5,599.82,0.33343336]
[1740996205812,1.73786388,601.5,599.84,1.2343549]
[1740996206213,0.33249102,601.52,599.86,0.33341112]
[1740996206819,1.73749511,601.51,599.86,0.33341112]
[1740996207219,1.73749511,601.51,599.88,1.2343549]
[1740996207521,1.73749511,601.51,599.9,0.33338889]
[1740996209219,0.33249102,601.52,599.9,0.33338889]
[1740996209623,1.73778432,601.5,600.0,1.2343549]
[1740996209821,1.73778432,601.5,600.02,0.33332222]
[1740996211522,1.73778432,601.5,600.02,1.56767712]
[1740996212327,0.33249102,601.52,600.02,1.56767712]
[1740996212724,1.73738668,601.51,600.02,1.56767712]
[1740996213727,1.73738668,601.51,600.24,1.2343549]
[1740996214129,1.73738668,601.51,600.25,0.3331945]
[1740996215227,0.33249102,601.52,600.25,0.3331945]
[1740996215620,0.33249102,601.52,600.32,1.2343549]
[1740996215823,1.73722045,601.51,600.32,1.2343549]
[1740996216424,0.33250207,601.5,600.32,1.2343549]
[1740996217931,0.33250207,601.5,600.37,1.2343549]
[1740996218731,1.73754572,601.49,600.37,1.2343549]
[1740996219033,0.33251313,601.48,600.37,1.2343549]
[1740996220428,0.33251313,601.48,600.25,0.3331945]
[1740996221721,1.73765417,601.47,600.25,0.3331945]
[1740996221926,0.33252419,601.46,600.25,0.3331945]
[1740996223129,0.33252419,601.46,600.28,1.2343549]
[1740996224525,1.73763971,601.45,600.28,1.2343549]
[1740996225031,0.33253524,601.44,600.25,0.3331945]
[1740996227629,1.73777709,601.43,600.25,0.3331945]
[1740996228635,0.3325463,601.42,600.25,0.3331945]
[1740996230631,1.73832686,601.41,600.25,0.3331945]
[1740996231030,0.33255736,601.4,600.25,0.3331945]
[1740996233636,0.33255736,601.4,600.35,1.2343549]
[1740996233838,1.73779156,601.39,600.35,1.2343549]
[1740996234136,2.07035445,601.39,600.35,1.2343549]
[1740996235331,2.07035445,601.39,600.25,0.3331945]
[1740996236339,0.33256289,601.39,600.25,0.3331945]
[1740996236532,1.73779879,601.38,600.25,0.3331945]
[1740996240835,2.66206991,601.37,600.25,0.3331945]
[1740996241039,4.3998687,601.38,600.25,0.3331945]
[1740996241243,2.66182363,601.37,600.25,0.3331945]
[1740996241441,4.39962242,601.38,600.25,0.3331945]
[1740996241636,2.66182363,601.37,600.25,0.3331945]
[1740996242345,2.66182363,601.36,600.25,0.3331945]
[1740996242543,2.66182363,601.35,600.25,0.3331945]
[1740996242743,2.66182363,601.34,600.25,0.3331945]
[1740996242938,2.66195883,601.33,600.25,0.3331945]
[1740996243137,2.66195883,601.32,600.25,0.3331945]
[1740996243338,1.73784218,601.35,600.25,0.3331945]
[1740996243541,2.66196584,601.34,600.25,0.3331945]
[1740996243842,2.66196584,601.33,600.25,0.3331945]
[1740996244047,2.66196584,601.32,600.25,0.3331945]
[1740996244342,2.66196584,601.31,600.25,0.3331945]
[1740996244543,2.66196584,601.3,600.25,0.3331945]
[1740996244737,2.66196584,601.29,600.25,0.3331945]
[1740996244942,2.66196584,601.28,600.25,0.3331945]
[1740996245135,2.66196584,601.27,600.25,0.3331945]
[1740996245343,2.66196584,601.26,600.25,0.3331945]
[1740996245540,2.66196584,601.25,600.25,0.3331945]
[1740996245739,2.66196584,601.24,600.25,0.3331945]
[1740996245937,2.66196584,601.23,600.25,0.3331945]
[1740996246243,2.66196584,601.25,600.25,0.3331945]
[1740996246545,2.66196584,601.24,600.25,0.3331945]
[1740996246738,2.66196584,601.25,600.25,0.3331945]
[1740996246942,2.66196584,601.24,600.25,0.3331945]
[1740996247243,2.66196584,601.25,600.25,0.3331945]
[1740996247441,2.66196584,601.24,600.25,0.3331945]
[1740996247639,2.66196584,601.23,600.25,0.3331945]
[1740996247939,1.7380013,601.26,600.25,0.3331945]
[1740996248140,2.0706361,601.26,600.25,0.3331945]
[1740996248445,0.33264033,601.25,600.25,0.3331945]
[1740996248647,2.07079354,601.25,600.25,0.3331945]
[1740996249347,2.07079354,601.25,600.11,1.2343549]
[1740996251347,2.07079354,601.25,600.0,1.2343549]
[1740996253249,2.07079354,601.25,599.97,1.2343549]
[1740996253645,2.66330922,601.24,599.97,1.2343549]
[1740996253948,3.32913652,601.24,599.97,1.2343549]
[1740996254144,0.33265693,601.22,599.97,1.2343549]
[1740996255145,0.33265693,601.22,599.81,1.2343549]
[1740996255449,0.33265693,601.22,599.82,0.33343336]
[1740996257847,1.73854397,601.21,599.85,1.2343549]
[1740996258053,0.33266799,601.2,599.86,0.33341112]
[1740996265056,0.33266799,601.2,599.96,1.2343549]
[1740996266853,1.73819662,601.19,599.96,0.33335555]
[1740996267057,0.33267906,601.18,599.96,0.33335555]
[1740996268654,0.33267906,601.18,600.01,1.2343549]
[1740996270158,0.33267906,601.18,599.96,0.33335555]
[1740996271759,4.32722825,601.17,599.96,0.33335555]
[1740996271954,0.33269566,601.15,599.96,0.33335555]
[1740996272156,1.66489116,601.14,599.96,0.33335555]
[1740996272361,0.33271227,601.12,599.96,0.33335555]
[1740996272563,1.66489116,601.11,599.96,0.33335555]
[1740996272764,0.33272887,601.09,599.96,0.33335555]
[1740996273064,1.66489116,601.08,599.96,0.33335555]
[1740996273261,1.9976311,601.07,599.96,0.33335555]
[1740996273563,1.99763664,601.06,599.96,0.33335555]
[1740996273765,1.99764217,601.05,599.96,0.33335555]
[1740996273958,1.66489116,601.04,599.66,1.2343549]
[1740996274158,1.99765325,601.03,599.66,1.2343549]
[1740996274365,1.66489116,601.02,599.66,1.2343549]
[1740996274570,1.99766432,601.01,599.47,1.2343549]
[1740996274765,1.99766986,601.0,599.48,0.33362247]
[1740996274967,1.66489116,600.99,599.48,0.33362247]
[1740996275170,1.99768093,600.98,599.48,0.33362247]
[1740996275371,1.99768647,600.97,599.48,0.33362247]
[1740996275671,1.99769201,600.96,599.48,0.33362247]
[1740996275871,1.99769754,600.95,599.48,0.33362247]
[1740996276170,0.33281192,600.94,599.48,0.33362247]
[1740996277870,1.99791218,600.94,599.48,0.33362247]
[1740996278070,1.66510026,600.93,599.48,0.33362247]
[1740996278271,0.332823,600.92,599.48,0.33362247]
[1740996278471,2.07246058,600.92,599.48,0.33362247]
[1740996281372,0.332823,600.92,599.48,0.33362247]
[1740996281575,1.73952163,600.91,599.48,0.33362247]
[1740996283778,2.07235017,600.91,599.48,0.33362247]
[1740996285477,2.07235017,600.91,599.48,1.56797737]
[1740996287479,0.33282854,600.91,599.48,0.33362247]
[1740996287673,1.73939121,600.9,599.48,0.33362247]
[1740996290378,0.33282854,600.91,599.48,0.33362247]
[1740996290779,1.73947091,600.89,599.48,0.33362247]
[1740996296492,0.33282854,600.91,599.48,0.33362247]
[1740996296688,1.73929703,600.88,599.48,0.33362247]
[1740996302392,0.33282854,600.91,599.48,0.33362247]
[1740996302587,2.07243754,600.87,599.48,0.33362247]
[1740996302994,2.07243754,600.87,599.69,1.2343549]
[1740996303992,0.33285623,600.86,599.69,1.2343549]
[1740996305191,0.33285623,600.86,599.64,1.2343549]
[1740996305587,1.73934774,600.85,599.64,1.2343549]
[1740996306393,0.33286731,600.84,599.64,1.2343549]
[1740996308793,1.73942744,600.83,599.64,1.2343549]
[1740996308995,0.33287839,600.82,599.64,1.2343549]
[1740996311690,1.73925357,600.81,599.64,1.2343549]
[1740996312293,0.33288948,600.8,599.64,1.2343549]
[1740996314096,0.33288948,600.8,599.65,0.33352789]
[1740996323802,1.73931152,600.79,599.65,0.33352789]
[1740996325195,1.73931152,600.79,599.78,1.2343549]
[1740996326404,0.33288948,600.8,599.78,1.2343549]
[1740996326797,1.73928979,600.78,599.78,1.2343549]
[1740996327304,1.73928979,600.78,599.65,0.33352789]
[1740996329302,0.33288948,600.8,599.65,0.33352789]
[1740996329504,0.33288948,600.8,599.7,1.2343549]
[1740996329802,1.73917389,600.79,599.71,0.33349452]
[1740996332498,1.73917389,600.79,599.75,1.2343549]
[1740996332700,1.73917389,600.79,599.76,0.33346672]
[1740996335007,1.73917389,600.79,599.92,1.2343549]
[1740996335501,3.32970068,601.14,599.92,1.2343549]
[1740996335700,0.33271227,601.12,599.92,1.2343549]
[1740996336007,2.66376055,601.11,599.92,1.2343549]
[1740996336201,2.99648389,601.1,599.92,1.2343549]
[1740996336507,0.33272887,601.09,599.92,1.2343549]
[1740996336898,0.33272887,601.09,599.76,0.33346672]
[1740996336899,0.33272887,601.09,599.87,1.2343549]
[1740996338207,0.33272887,601.09,599.94,1.2343549]
[1740996338507,2.66376055,601.08,599.94,1.2343549]
[1740996338707,2.99650049,601.07,599.94,1.2343549]
[1740996338908,2.66376055,601.06,599.94,1.2343549]
[1740996339108,2.66376055,601.05,599.94,1.2343549]
[1740996339312,2.9965171,601.04,599.94,1.2343549]
[1740996339506,2.66376055,601.03,599.94,1.2343549]
[1740996339808,0.66594013,601.07,599.94,1.2343549]
[1740996339809,2.99652817,601.02,599.94,1.2343549]
[1740996340008,2.99653371,601.01,599.94,1.2343549]
[1740996340203,2.99653925,601.0,599.94,1.2343549]
[1740996340403,2.66376055,600.99,599.94,1.2343549]
[1740996340708,2.66376055,600.98,599.94,1.2343549]
[1740996340907,2.66376055,600.97,599.94,1.2343549]
[1740996341107,2.66376055,600.96,599.94,1.2343549]
[1740996341308,2.66376055,600.95,599.94,1.2343549]
[1740996341508,2.66376512,600.99,599.94,1.2343549]
[1740996341708,1.7388987,600.94,599.94,1.2343549]
[1740996341908,1.7388987,600.94,599.91,1.2343549]
[1740996344311,2.66376512,600.95,599.91,1.2343549]
[1740996344613,2.66376512,600.99,599.82,1.2343549]
[1740996344807,1.73892042,600.94,599.82,1.2343549]
[1740996345714,2.66406151,600.93,599.82,1.2343549]
[1740996345909,2.66406151,600.92,599.82,1.2343549]
[1740996346113,2.66406151,600.91,599.82,1.2343549]
[1740996346315,2.66406151,600.9,599.82,1.2343549]
[1740996346512,2.66406151,600.89,599.79,1.2343549]
[1740996346709,2.66406151,600.88,599.79,1.2343549]
[1740996346912,2.66406151,600.87,599.79,1.2343549]
[1740996347108,2.66406151,600.86,599.79,1.2343549]
[1740996347309,2.66406151,600.85,599.79,1.2343549]
[1740996347513,2.66406151,600.92,599.79,1.2343549]
[1740996347709,1.73918114,600.84,599.79,1.2343549]
[1740996348109,2.66406151,600.89,599.79,1.2343549]
[1740996348313,1.73918838,600.83,599.79,1.2343549]
[1740996349013,1.73918838,600.83,599.94,1.2343549]
[1740996349415,4.40324989,600.83,599.94,1.2343549]
[1740996349613,1.73918838,600.83,599.94,1.2343549]
[1740996350313,3.3301782,600.96,599.94,1.2343549]
[1740996350513,2.66414256,600.95,599.94,1.2343549]
[1740996350707,1.73911595,600.82,599.94,1.2343549]
[1740996350915,2.66414256,600.81,599.94,1.2343549]
[1740996351211,2.66414256,600.8,599.94,1.2343549]
[1740996351411,4.32976677,600.79,599.93,1.2343549]
[1740996351611,4.99580241,600.78,599.93,1.2343549]
[1740996351814,4.99580241,600.77,599.93,1.2343549]
[1740996352014,4.99580241,600.76,599.93,1.2343549]
[1740996352214,4.99580241,600.75,599.93,1.2343549]
[1740996352516,4.99580241,600.74,599.93,1.2343549]
[1740996352712,4.99580241,600.73,599.93,1.2343549]
[1740996353017,4.99580241,600.72,599.93,1.2343549]
[1740996353218,4.99580241,600.71,599.93,1.2343549]
[1740996353420,4.99580241,600.7,599.93,1.2343549]
[1740996353612,5.32875285,600.69,599.93,1.2343549]
[1740996353913,4.32976677,600.68,599.93,1.2343549]
[1740996354117,4.32976677,600.67,599.93,1.2343549]
[1740996354317,4.66437212,600.66,599.93,1.2343549]
[1740996354518,4.66437767,600.65,599.31,1.2343549]
[1740996354714,4.33140506,600.64,599.32,0.33371153]
[1740996354918,1.66592502,600.63,599.32,0.33371153]
[1740996355118,1.66592502,600.62,599.32,0.33371153]
[1740996355322,1.66592502,600.61,599.32,0.33371153]
[1740996355618,1.66592502,600.6,599.32,0.33371153]
[1740996355816,1.66592502,600.59,599.32,0.33371153]
[1740996356015,1.66592502,600.64,599.32,0.33371153]
[1740996356220,1.66592502,600.63,599.32,0.33371153]
[1740996356521,1.66592502,600.62,599.32,0.33371153]
[1740996356720,1.66592502,600.61,599.32,0.33371153]
[1740996356916,1.66592502,600.6,599.32,0.33371153]
[1740996357123,1.66592502,600.59,599.32,0.33371153]
[1740996357325,1.66592502,600.58,599.32,0.33371153]
[1740996357628,1.66592502,600.61,599.32,0.33371153]
[1740996357828,1.74010876,600.62,599.32,0.33371153]
[1740996357829,1.66592502,600.6,599.32,0.33371153]
[1740996358121,1.66592599,600.59,599.32,0.33371153]
[1740996358328,1.66592599,600.61,599.32,0.33371153]
[1740996358526,0.33300033,600.6,599.32,0.33371153]
[1740996358722,1.99892632,600.6,599.32,0.33371153]
[1740996358927,1.66592599,600.59,599.32,0.33371153]
[1740996359322,0.33300033,600.6,599.32,0.33371153]
[1740996360227,1.99892632,600.6,599.32,0.33371153]
[1740996360527,1.66592599,600.59,599.32,0.33371153]
[1740996360922,0.33300033,600.6,599.32,0.33371153]
[1740996361427,1.66592599,600.59,599.32,0.33371153]
[1740996361627,0.33300033,600.6,599.32,0.33371153]
[1740996361928,1.66592599,600.59,599.32,0.33371153]
[1740996362128,0.33301142,600.58,599.32,0.33371153]
[1740996362730,1.66592599,600.57,599.32,0.33371153]
[1740996363028,0.33302251,600.56,599.32,0.33371153]
[1740996363230,0.33302251,600.56,599.39,1.2343549]
[1740996363932,1.66592599,600.55,599.39,1.2343549]
[1740996364130,1.66592599,600.54,599.39,1.2343549]
[1740996364429,1.66592599,600.55,599.39,1.2343549]
[1740996364629,1.66592599,600.54,599.39,1.2343549]
[1740996364823,1.66592599,600.53,599.39,1.2343549]
[1740996365028,0.33302251,600.56,599.32,0.33371153]
[1740996365029,1.66592599,600.52,599.32,0.33371153]
[1740996365228,1.66592599,600.55,599.32,0.33371153]
[1740996365831,1.66592599,600.54,599.32,0.33371153]
[1740996366032,1.66592599,600.53,599.32,0.33371153]
[1740996366234,1.66592599,600.52,599.32,0.33371153]
[1740996366433,1.66592599,600.55,599.32,0.33371153]
[1740996366633,1.66592599,600.54,599.32,0.33371153]
[1740996366837,1.66592599,600.53,599.32,0.33371153]
[1740996367042,1.66592599,600.52,599.32,0.33371153]
[1740996367233,1.66592599,600.51,599.32,0.33371153]
[1740996367439,1.74064549,600.54,599.32,0.33371153]
[1740996367638,1.6663814,600.53,599.32,0.33371153]
[1740996367941,1.6663814,600.52,599.32,0.33371153]
[1740996368235,1.6663814,600.51,599.32,0.33371153]
[1740996368438,1.6663814,600.5,599.32,0.33371153]
[1740996368637,1.99944273,600.49,599.32,0.33371153]
[1740996368834,1.6663814,600.48,599.32,0.33371153]
[1740996369032,1.6663814,600.47,599.32,0.33371153]
[1740996369232,1.74066726,600.5,599.32,0.33371153]
[1740996369233,1.99945937,600.46,599.32,0.33371153]
[1740996369437,1.6663814,600.45,599.32,0.33371153]
[1740996369634,1.6663814,600.44,599.32,0.33371153]
[1740996369832,1.6663814,600.43,599.32,0.33371153]
[1740996370040,1.6663814,600.42,599.32,0.33371153]
[1740996370237,1.6663814,600.41,599.32,0.33371153]
[1740996370543,1.6663814,600.4,599.32,0.33371153]
[1740996370747,1.6663814,600.39,599.32,0.33371153]
[1740996370940,1.6663814,600.38,599.32,0.33371153]
[1740996371145,1.6663814,600.37,599.32,0.33371153]
[1740996371344,1.6663814,600.36,599.32,0.33371153]
[1740996371545,1.6663814,600.35,599.32,0.33371153]
[1740996371747,4.33259164,600.39,599.32,0.33371153]
[1740996372048,4.66571399,600.38,599.32,0.33371153]
[1740996372347,1.74066726,600.5,599.32,0.33371153]
[1740996372348,4.66571954,600.37,599.32,0.33371153]
[1740996372549,4.66572509,600.36,599.32,0.33371153]
[1740996372749,4.66573064,600.35,599.32,0.33371153]
[1740996372951,4.66624741,600.34,599.32,0.33371153]
[1740996373150,1.9995315,600.33,599.32,0.33371153]
[1740996373349,1.99953705,600.32,599.32,0.33371153]
[1740996373548,0.3331612,600.31,599.32,0.33371153]
[1740996374851,1.74103737,600.3,599.32,0.33371153]
[1740996377346,0.3331612,600.31,599.32,0.33371153]
[1740996377745,1.74069628,600.3,599.32,0.33371153]
[1740996380445,4.99799793,600.75,599.32,0.33371153]
[1740996380647,1.74070353,600.29,599.32,0.33371153]
[1740996380846,4.99799793,600.73,599.32,0.33371153]
[1740996381047,1.74071079,600.28,599.32,0.33371153]
[1740996381453,4.33159821,600.7,599.32,0.33371153]
[1740996381654,1.74071805,600.27,599.32,0.33371153]
[1740996381948,4.33159821,600.68,599.32,0.33371153]
[1740996382149,1.74071805,600.26,599.32,0.33371153]
[1740996382355,4.33159821,600.66,599.32,0.33371153]
[1740996382653,1.74065274,600.25,599.32,0.33371153]
[1740996382854,0.33296152,600.67,599.32,0.33371153]
[1740996382855,1.66599931,600.64,599.32,0.33371153]
[1740996383055,1.74066,600.24,599.32,0.33371153]
[1740996383451,0.33296152,600.67,599.32,0.33371153]
[1740996383647,1.74066726,600.23,599.32,0.33371153]
[1740996384048,2.189,600.22,599.32,0.33371153]
[1740996384251,5.02955117,600.22,599.32,0.33371153]
[1740996385051,3.92955117,600.22,599.32,0.33371153]
[1740996385254,2.82955117,600.22,599.32,0.33371153]
[1740996385456,1.74055117,600.22,599.32,0.33371153]
[1740996386057,1.106,600.21,599.32,0.33371153]
[1740996386358,3.023,600.21,599.32,0.33371153]
[1740996386556,1.74050039,600.2,599.32,0.33371153]
[1740996390254,1.106,600.21,599.32,0.33371153]
[1740996394067,1.106,600.21,599.43,1.2343549]
[1740996394864,1.106,600.21,599.44,0.33364473]
[1740996396367,1.106,600.21,599.57,1.2343549]
[1740996396567,1.106,600.21,599.58,0.33356683]
[1740996406479,1.106,600.21,599.58,1.56792173]
[1740996408580,1.106,600.21,599.86,1.2343549]
[1740996410184,1.106,600.21,599.78,1.2343549]
[1740996410581,1.106,600.21,599.79,0.33345004]
[1740996412984,1.477,600.22,599.79,0.33345004]
[1740996421992,1.477,600.22,599.36,1.2343549]
[1740996422394,1.477,600.22,599.37,0.3336837]
[1740996422593,1.7402973,600.21,599.37,0.3336837]
[1740996424600,1.171,600.2,599.37,0.3336837]
[1740996425094,1.171,600.2,599.41,1.2343549]
[1740996425693,1.74050765,600.19,599.41,1.2343549]
[1740996427091,1.74050765,600.19,599.37,0.3336837]
[1740996428391,1.171,600.2,599.37,0.3336837]
[1740996428590,1.74058019,600.18,599.37,0.3336837]
[1740996430389,1.059,600.17,599.37,0.3336837]
[1740996433299,1.071,600.16,599.37,0.3336837]
[1740996437902,1.7409285,600.15,599.37,0.3336837]
[1740996438704,1.316,600.14,599.37,0.3336837]
[1740996442998,1.598,600.13,599.37,0.3336837]
[1740996443503,1.598,600.13,599.5,1.2343549]
[1740996443897,1.598,600.13,599.51,0.33360577]
[1740996444406,1.324,600.12,599.51,0.33360577]
[1740996446006,0.966,600.11,599.51,0.33360577]
[1740996453715,1.323,600.1,599.51,0.33360577]
[1740996457612,1.323,600.1,599.53,1.2343549]
[1740996457813,1.323,600.1,599.54,0.33358908]
[1740996459417,1.323,600.1,599.57,1.2343549]
[1740996461119,1.323,600.1,599.56,1.2343549]
[1740996463521,1.323,600.1,599.54,0.33358908]
[1740996467635,1.74056568,600.09,599.54,0.33358908]
[1740996470432,3.704,600.1,599.54,0.33358908]
[1740996473936,3.704,600.1,599.55,1.2343549]
[1740996474441,2.381,600.1,599.55,1.2343549]
[1740996475835,2.381,600.1,599.69,1.2343549]
[1740996476731,1.74030455,600.09,599.69,1.2343549]
[1740996478333,1.74030455,600.09,599.54,1.81481497]
[1740996478334,1.74030455,600.09,599.54,0.33358908]
[1740996479534,2.381,600.1,599.54,0.33358908]
[1740996479934,1.74044962,600.08,599.54,0.33358908]
[1740996481442,1.74044962,600.08,599.52,1.2343549]
[1740996482643,1.74044962,600.08,599.24,1.2343549]
[1740996484740,3.27944962,600.08,599.24,1.2343549]
[1740996484944,3.27944962,600.08,599.2,1.2343549]
[1740996485546,1.539,600.08,599.2,1.2343549]
[1740996485746,1.74096478,600.07,599.2,1.2343549]
[1740996485944,1.74096478,600.07,599.21,0.3337728]
[1740996487046,1.539,600.08,599.21,0.3337728]
[1740996487653,1.539,600.08,599.27,1.2343549]
[1740996489155,1.539,600.08,599.51,1.2343549]
[1740996491460,1.539,600.08,599.42,1.2343549]
[1740996491758,1.539,600.08,599.43,0.3336503]
[1740996493061,1.539,600.08,599.43,1.5680052]
[1740996495162,2.912,600.08,599.48,1.2343549]
[1740996496854,3.948,600.08,599.43,0.3336503]
[1740996499767,3.948,600.08,599.58,1.2343549]
[1740996500164,2.409,600.08,599.58,1.2343549]
[1740996501368,2.409,600.08,599.43,0.3336503]
[1740996503268,3.964,600.08,599.43,0.3336503]
[1740996503768,1.74068902,600.07,599.43,0.3336503]
[1740996505668,2.83268902,600.07,599.43,0.3336503]
[1740996506467,1.092,600.07,599.43,0.3336503]
[1740996506668,1.74093575,600.06,599.43,0.3336503]
[1740996509176,1.74093575,600.06,599.14,1.2343549]
[1740996509479,1.092,600.07,599.14,1.2343549]
[1740996509676,1.74117529,600.05,599.14,1.2343549]
[1740996511075,1.74117529,600.05,598.78,1.2343549]
[1740996511273,1.74117529,600.05,598.8,0.33400133]
[1740996512474,1.092,600.07,598.8,0.33400133]
[1740996512879,1.74148026,600.06,598.8,0.33400133]
[1740996513076,1.74148026,600.06,598.99,1.2343549]
[1740996513277,1.74148026,600.06,599.0,0.33388981]
[1740996515280,1.74148026,600.06,599.09,1.2343549]
[1740996515978,1.7,600.05,599.09,1.2343549]
[1740996517079,1.7,600.05,599.04,1.2343549]
[1740996517581,1.451,600.04,599.04,1.2343549]
[1740996518778,1.7412842,600.03,599.04,1.2343549]
[1740996519284,1.7412842,600.03,599.05,0.33386194]
[1740996521380,1.451,600.04,599.05,0.33386194]
[1740996521585,1.1,600.02,599.05,0.33386194]
[1740996523187,1.357,600.01,599.05,0.33386194]